fUST/lending_fUST_20250822
["ID","MTS","AMOUNT","RATE_DAILY","PERIOD"]
[380744474,1755855048498,-480.0,0.00025479,10]
[380744475,1755855048508,-480.0,0.00025479,10]
[380744476,1755855048518,-480.0,0.00025479,10]
[380744477,1755855048527,-480.0,0.00025479,10]
[380744478,1755855048537,-686.45,0.00025479,10]
[380744479,1755855048547,-480.0,0.00025479,10]
[380744480,1755855048557,-480.0,0.00025479,10]
[380744481,1755855048566,-1849.93,0.00025479,10]
[380744482,1755855048576,-480.0,0.00025479,10]
[380744483,1755855048585,-403.88685304,0.00025479,10]
[380744484,1755855048595,-1075.52,0.00025479,10]
[380744485,1755855048604,-940.32,0.00025479,10]
[380744486,1755855048613,-1238.27,0.00025479,10]
[380744487,1755855048623,-480.0,0.00025479,10]
[380744488,1755855048633,-480.0,0.00025479,10]
[380744489,1755855048642,-480.0,0.00025479,10]
[380744490,1755855048652,-480.0,0.00025479,10]
[380744491,1755855048661,-480.0,0.00025479,10]
[380744492,1755855048670,-480.0,0.00025479,10]
[380744493,1755855048680,-480.0,0.00025479,10]
[380744494,1755855048689,-530.62180261,0.00025479,10]
[380744495,1755855048699,-480.0,0.00025479,10]
[380744496,1755855048708,-480.0,0.00025479,10]
[380744497,1755855048717,-480.0,0.00025479,10]
[380744498,1755855048726,-480.0,0.00025479,10]
[380744499,1755855048736,-480.0,0.00025479,10]
[380744500,1755855048745,-480.0,0.00025479,10]
[380744501,1755855048755,-480.0,0.00025479,10]
[380744502,1755855048764,-480.0,0.00025479,10]
[380744503,1755855048773,-818.69,0.00025479,10]
[380744504,1755855048783,-645.71,0.00025479,10]
[380744505,1755855048792,-480.0,0.00025479,3]
[380744506,1755855048804,-480.0,0.00025479,10]
[380744507,1755855048813,-480.0,0.00025479,10]
[380744508,1755855048823,-480.0,0.00025479,10]
[380744509,1755855048832,-480.0,0.00025479,10]
[380744510,1755855048841,-480.0,0.00025479,10]
[380744511,1755855048851,-1000.0,0.000255,2]
[380744512,1755855048860,-500.0,0.00025514,2]
[380744513,1755855048870,-1000.0,0.00025521,2]
[380744514,1755855048880,-300.0,0.00025521,2]
[380744515,1755855048889,-350.44851005,0.00025521,2]
[380744516,1755855048898,-1000.0,0.00025521,2]
[380744517,1755855048908,-250.0,0.00025521,2]
[380744518,1755855048917,-500.0,0.00025527,2]
[380744519,1755855048926,-588.1189846,0.00025573,2]
[380744520,1755855048936,-525.7317528,0.00025573,2]
[380744521,1755855048945,-160.9356585,0.00025573,2]
[380744522,1755855048955,-160.9356585,0.00025573,2]
[380744523,1755855048964,-294.0594923,0.00025573,2]
[380744524,1755855048973,-307.7428896,0.00025573,2]
[380744525,1755855048982,-321.871317,0.00025573,2]
[380744526,1755855048992,-294.0594923,0.00025573,2]
[380744527,1755855049001,-306.0,0.00025573,2]
[380744528,1755855049011,-160.9356585,0.00025573,2]
[380744529,1755855049020,-294.0594923,0.00025573,2]
[380744530,1755855049030,-500.0,0.00025576,2]
[380744531,1755855049039,-900.0,0.00025638,2]
[380744532,1755855049050,-683.10316288,0.00025653,2]
[380744533,1755855049060,-500.0,0.0002566,2]
[380744534,1755855049070,-1103.86240737,0.0002568,2]
[380744535,1755855049079,-160.0,0.00025729,2]
[380744536,1755855049090,-176.96186266,0.0002573,2]
[380744537,1755855049102,-8162.60128801,0.00025743,2]
[380744538,1755855049112,-480.0,0.00025753,10]
[380744539,1755855049122,-284.81,0.00025753,10]
[380744540,1755855049132,-480.0,0.00025753,10]
[380744541,1755855049142,-480.0,0.00025753,10]
[380744542,1755855049152,-480.0,0.00025753,10]
[380744543,1755855049161,-480.0,0.00025753,10]
[380744544,1755855049170,-480.0,0.00025753,10]
[380744545,1755855049180,-480.0,0.00025753,10]
[380744546,1755855049191,-686.45,0.00025753,10]
[380744547,1755855049200,-297.80488614,0.00025753,10]
[380744548,1755855049210,-383.79477465,0.00025753,10]
[380744549,1755855049219,-1849.93,0.00025753,10]
[380744550,1755855049229,-480.0,0.00025753,10]
[380744551,1755855049238,-1075.52,0.00025753,10]
[380744552,1755855049248,-940.32,0.00025753,10]
[380744553,1755855049258,-1238.27,0.00025753,10]
[380744554,1755855049268,-224.5625176,0.00025753,10]
[380744555,1755855049278,-480.0,0.00025753,10]
[380744556,1755855049287,-480.0,0.00025753,10]
[380744557,1755855049299,-480.0,0.00025753,10]
[380744558,1755855049308,-480.0,0.00025753,10]
[380744559,1755855049318,-480.0,0.00025753,10]
[380744560,1755855049327,-480.0,0.00025753,10]
[380744561,1755855049338,-480.0,0.00025753,10]
[380744562,1755855049348,-480.0,0.00025753,10]
[380744563,1755855049359,-480.0,0.00025753,10]
[380744564,1755855049368,-480.0,0.00025753,10]
[380744565,1755855049378,-480.0,0.00025753,10]
[380744566,1755855049387,-818.69,0.00025753,10]
[380744567,1755855049396,-645.71,0.00025753,10]
[380744568,1755855049406,-480.0,0.00025753,3]
[380744569,1755855049415,-480.0,0.00025753,10]
[380744570,1755855049424,-480.0,0.00025753,10]
[380744571,1755855049433,-480.0,0.00025753,10]
[380744572,1755855049519,-500.0,0.00025851,2]
[380744573,1755855049539,-8993.77583366,0.00025927,2]
[380744574,1755855049548,-1500.0,0.00025968,2]
[380744575,1755855049557,-500.0,0.00025969,2]
[380744576,1755855049568,-597.76365522,0.00025969,2]
[380744577,1755855049577,-8588.6256679,0.00025984,2]
[380744578,1755855049587,-3047.48198746,0.00026,2]
[380744579,1755855049598,-521.09193332,0.00026,2]
[380744580,1755855049608,-1658.183106,0.00026,30]
[380744581,1755855049623,-19900.0,0.00026,2]
[380744582,1755855049647,-471358.82668287,0.00026,14]
[380744583,1755855049666,-480.0,0.00026027,10]
[380744584,1755855049675,-480.0,0.00026027,10]
[380744585,1755855049684,-150.5675974,0.00026027,10]
[380744586,1755855049694,-480.0,0.00026027,10]
[380744587,1755855049704,-480.0,0.00026027,10]
[380744588,1755855049713,-480.0,0.00026027,10]
[380744589,1755855049723,-686.45,0.00026027,10]
[380744590,1755855049743,-1849.93,0.00026027,10]
[380744591,1755855049752,-1075.52,0.00026027,10]
[380744592,1755855049761,-940.32,0.00026027,10]
[380744593,1755855049771,-1238.27,0.00026027,10]
[380744594,1755855049780,-500.766455,0.00026027,10]
[380744595,1755855049789,-480.0,0.00026027,10]
[380744596,1755855049799,-480.0,0.00026027,10]
[380744597,1755855049808,-480.0,0.00026027,10]
[380744598,1755855049818,-480.0,0.00026027,10]
[380744599,1755855049827,-480.0,0.00026027,10]
[380744600,1755855049836,-480.0,0.00026027,10]
[380744601,1755855049845,-388.02883078,0.00026027,10]
[380744602,1755855049854,-408.99511623,0.00026027,10]
[380744603,1755855049865,-480.0,0.00026027,10]
[380744604,1755855049874,-818.69,0.00026027,10]
[380744605,1755855049884,-645.71,0.00026027,10]
[380744606,1755855049893,-480.0,0.00026027,3]
[380744607,1755855049903,-480.0,0.00026027,10]
[380744608,1755855049912,-480.0,0.00026027,10]
[380744609,1755855049922,-480.0,0.00026027,10]
[380744610,1755855049932,-500.0,0.00026034,2]
[380744611,1755855049942,-500.0,0.0002606,2]
[380744612,1755855049951,-262.29165198,0.00026068,2]
[380744613,1755855049963,-450.0,0.00026068,2]
[380744614,1755855049975,-1500.0,0.00026068,2]
[380744615,1755855049992,-350.0,0.00026068,2]
[380744616,1755855050010,-8162.60128801,0.00026094,2]
[380744617,1755855050021,-151.0,0.00026097,2]
[380744618,1755855050030,-8458.97906503,0.00026097,2]
[380744619,1755855050041,-587.0,0.00026108,2]
[380744620,1755855050051,-168.0,0.00026246,7]
[380744621,1755855050061,-260.0,0.00026277,2]
[380744622,1755855050070,-480.0,0.00026301,10]
[380744623,1755855050081,-480.0,0.00026301,10]
[380744624,1755855050091,-686.45,0.00026301,10]
[380744625,1755855050105,-1849.93,0.00026301,10]
[380744626,1755855050115,-1075.52,0.00026301,10]
[380744627,1755855050124,-940.32,0.00026301,10]
[380744628,1755855050133,-1238.27,0.00026301,10]
[380744629,1755855050143,-480.0,0.00026301,10]
[380744630,1755855050152,-480.0,0.00026301,10]
[380744631,1755855050162,-480.0,0.00026301,10]
[380744632,1755855050171,-480.0,0.00026301,10]
[380744633,1755855050181,-818.69,0.00026301,10]
[380744634,1755855050191,-645.71,0.00026301,10]
[380744635,1755855050201,-480.0,0.00026301,3]
[380744636,1755855050210,-480.0,0.00026301,10]
[380744637,1755855050219,-480.0,0.00026301,10]
[380744638,1755855050228,-480.0,0.00026301,10]
[380744639,1755855050237,-191.0,0.00026353,2]
[380744640,1755855050247,-588.1189846,0.00026395,2]
[380744641,1755855050256,-160.9356585,0.00026395,2]
[380744642,1755855050266,-160.9356585,0.00026395,2]
[380744643,1755855050277,-153.0,0.00026395,2]
[380744644,1755855050286,-625.8758288,0.00026395,2]
[380744645,1755855050297,-160.9356585,0.00026395,2]
[380744646,1755855050306,-153.0,0.00026395,2]
[380744647,1755855050315,-160.9356585,0.00026395,2]
[380744648,1755855050325,-600.0,0.000264,2]
[380744649,1755855050334,-500.0,0.00026434,2]
[380744650,1755855050343,-168.0,0.00026435,2]
[380744651,1755855050353,-2155.912,0.00026437,2]
[380744652,1755855050362,-639.856,0.00026437,2]
[380744653,1755855050371,-408.0,0.00026437,2]
[380744654,1755855050380,-153.0,0.0002647,2]
[380744655,1755855050389,-153.0,0.0002647,2]
[380744656,1755855050399,-153.0,0.0002647,2]
[380744657,1755855050408,-153.0,0.0002647,2]
[380744658,1755855050417,-153.0,0.0002647,2]
[380744659,1755855050426,-153.0,0.0002647,2]
[380744660,1755855050436,-153.0,0.0002647,2]
[380744661,1755855050446,-153.0,0.0002647,2]
[380744662,1755855050455,-153.0,0.0002647,2]
[380744663,1755855050464,-153.0,0.0002647,2]
[380744664,1755855050474,-153.0,0.0002647,2]
[380744665,1755855050484,-153.0,0.0002647,2]
[380744666,1755855050494,-153.0,0.0002647,2]
[380744667,1755855050504,-153.0,0.0002647,2]
[380744668,1755855050513,-153.0,0.0002647,2]
[380744669,1755855050523,-153.0,0.0002647,2]
[380744670,1755855050532,-153.0,0.0002647,2]
[380744671,1755855050542,-153.0,0.0002647,2]
[380744672,1755855050552,-153.0,0.0002647,2]
[380744673,1755855050562,-153.0,0.0002647,2]
[380744674,1755855050571,-153.0,0.0002647,2]
[380744675,1755855050581,-153.0,0.0002647,2]
[380744676,1755855050591,-153.0,0.0002647,2]
[380744677,1755855050600,-153.0,0.0002647,2]
[380744678,1755855050610,-153.0,0.0002647,2]
[380744679,1755855050619,-153.0,0.0002647,2]
[380744680,1755855050628,-8162.60128801,0.0002648,2]
[380744681,1755855050638,-153.0,0.000265,2]
[380744682,1755855050647,-153.0,0.000265,2]
[380744683,1755855050656,-153.0,0.000265,2]
[380744684,1755855050666,-153.0,0.000265,2]
[380744685,1755855050675,-153.0,0.000265,2]
[380744686,1755855050684,-153.0,0.000265,2]
[380744687,1755855050693,-153.0,0.000265,2]
[380744688,1755855050702,-153.0,0.000265,2]
[380744689,1755855050712,-153.0,0.000265,2]
[380744690,1755855050721,-153.0,0.000265,2]
[380744691,1755855050745,-153.0,0.000265,2]
[380744692,1755855050755,-153.0,0.000265,2]
[380744693,1755855050764,-153.0,0.000265,2]
[380744694,1755855050773,-153.0,0.000265,2]
[380744695,1755855050783,-153.0,0.000265,2]
[380744696,1755855050792,-153.0,0.000265,2]
[380744697,1755855050801,-153.0,0.000265,2]
[380744698,1755855050811,-153.0,0.000265,2]
[380744699,1755855050820,-153.0,0.000265,2]
[380744700,1755855050830,-153.0,0.000265,2]
[380744701,1755855050839,-153.0,0.000265,2]
[380744702,1755855050848,-153.0,0.000265,2]
[380744703,1755855050857,-153.0,0.000265,2]
[380744704,1755855050866,-153.0,0.000265,2]
[380744705,1755855050875,-153.0,0.000265,2]
[380744706,1755855050885,-153.0,0.000265,2]
[380744707,1755855050894,-153.0,0.000265,2]
[380744708,1755855050903,-153.0,0.000265,2]
[380744709,1755855050913,-153.0,0.000265,2]
[380744710,1755855050923,-153.0,0.000265,2]
[380744711,1755855050933,-153.0,0.000265,2]
[380744712,1755855050942,-153.0,0.000265,2]
[380744713,1755855050952,-153.0,0.000265,2]
[380744714,1755855050961,-153.0,0.000265,2]
[380744715,1755855050970,-153.0,0.000265,2]
[380744716,1755855050980,-153.0,0.000265,2]
[380744717,1755855050989,-153.0,0.000265,2]
[380744718,1755855051000,-153.0,0.000265,2]
[380744719,1755855051009,-153.0,0.000265,2]
[380744720,1755855051018,-153.0,0.000265,2]
[380744721,1755855051027,-153.0,0.000265,2]
[380744722,1755855051036,-151.0,0.000265,20]
[380744723,1755855051045,-28546.09,0.000265,2]
[380744724,1755855051056,-335.44292313,0.00026516,2]
[380744725,1755855051065,-168.0,0.00026545,7]
[380744726,1755855051074,-1091.38007797,0.00026559,5]
[380744727,1755855051084,-176.96186266,0.00026572,2]
[380744728,1755855051095,-8162.60128801,0.00026575,2]
[380744729,1755855051106,-480.0,0.00026575,10]
[380744730,1755855051116,-686.45,0.00026575,10]
[380744731,1755855051126,-1849.93,0.00026575,10]
[380744732,1755855051135,-1075.52,0.00026575,10]
[380744733,1755855051146,-940.32,0.00026575,10]
[380744734,1755855051155,-1238.27,0.00026575,10]
[380744735,1755855051165,-480.0,0.00026575,10]
[380744736,1755855051175,-480.0,0.00026575,10]
[380744737,1755855051185,-818.69,0.00026575,10]
[380744738,1755855051194,-645.71,0.00026575,10]
[380744739,1755855051204,-480.0,0.00026575,10]
[380744740,1755855051213,-577.86,0.00026575,10]
[380744741,1755855051223,-480.0,0.00026575,10]
[380744742,1755855051232,-500.0,0.0002658,2]
[380744743,1755855051241,-500.0,0.00026604,2]
[380744744,1755855051250,-500.0,0.00026607,2]
[380744745,1755855051260,-300.75940492,0.00026616,2]
[380744746,1755855051270,-511.67806203,0.00026616,2]
[380744747,1755855051279,-250.0,0.00026616,2]
[380744748,1755855051289,-168.0,0.00026632,2]
[380744749,1755855051299,-216.07060739,0.00026673,2]
[380744750,1755855051308,-151.0,0.000267,10]
[380744751,1755855051317,-500.0,0.00026767,2]
[380744752,1755855051327,-157.0,0.000268,14]
[380744753,1755855051337,-360.0,0.00026824,2]
[380744754,1755855051346,-480.0,0.00026849,10]
[380744755,1755855051355,-686.45,0.00026849,10]
[380744756,1755855051365,-1849.93,0.00026849,10]
[380744757,1755855051374,-1075.52,0.00026849,10]
[380744758,1755855051384,-940.32,0.00026849,10]
[380744759,1755855051394,-1238.27,0.00026849,10]
[380744760,1755855051403,-480.0,0.00026849,10]
[380744761,1755855051413,-305.74,0.00026849,10]
[380744762,1755855051423,-818.69,0.00026849,10]
[380744763,1755855051432,-645.71,0.00026849,10]
[380744764,1755855051443,-480.0,0.00026849,10]
[380744765,1755855051452,-480.0,0.00026849,10]
[380744766,1755855051462,-896.0,0.00026902,2]
[380744767,1755855051471,-168.0,0.00026969,2]
[380744768,1755855051481,-463.55884946,0.00027,2]
[380744769,1755855051490,-151.0,0.00027,14]
[380744770,1755855051500,-151.0,0.00027,20]
[380744771,1755855051510,-896.0,0.00027033,2]
[380744772,1755855051520,-168.0,0.00027033,2]
[380744773,1755855051530,-282.0,0.00027049,2]
[380744774,1755855051539,-2170.61,0.000271,7]
[380744775,1755855051549,-480.0,0.00027123,10]
[380744776,1755855051559,-686.45,0.00027123,10]
[380744777,1755855051568,-1849.93,0.00027123,10]
[380744778,1755855051577,-1075.52,0.00027123,10]
[380744779,1755855051587,-940.32,0.00027123,10]
[380744780,1755855051596,-1238.27,0.00027123,10]
[380744781,1755855051606,-480.0,0.00027123,10]
[380744782,1755855051616,-818.69,0.00027123,10]
[380744783,1755855051626,-645.71,0.00027123,10]
[380744784,1755855051636,-516.45,0.00027123,10]
[380744785,1755855051645,-480.0,0.00027123,10]
[380744786,1755855051655,-151.0,0.000272,14]
[380744787,1755855051664,-151.0,0.000273,11]
[380744788,1755855051673,-500.0,0.00027329,2]
[380744789,1755855051683,-500.0,0.00027332,2]
[380744790,1755855051692,-600.0,0.00027361,2]
[380744791,1755855051701,-302.63687509,0.00027362,18]
[380744792,1755855051712,-460.0,0.00027372,2]
[380744793,1755855051721,-8162.60128801,0.00027387,2]
[380744794,1755855051737,-480.0,0.00027397,10]
[380744795,1755855051747,-686.45,0.00027397,10]
[380744796,1755855051757,-1849.93,0.00027397,10]
[380744797,1755855051767,-1075.52,0.00027397,10]
[380744798,1755855051777,-940.32,0.00027397,10]
[380744799,1755855051786,-1238.27,0.00027397,10]
[380744800,1755855051795,-480.0,0.00027397,10]
[380744801,1755855051808,-818.69,0.00027397,10]
[380744802,1755855051818,-645.71,0.00027397,10]
[380744803,1755855051827,-480.0,0.00027397,10]
[380744804,1755855051837,-150.0,0.00027397,2]
[380744805,1755855051847,-500.0,0.00027397,5]
[380744806,1755855051856,-2000.0,0.000274,2]
[380744807,1755855051866,-157.0,0.000274,35]
[380744808,1755855051875,-198.48,0.000274,7]
[380744809,1755855051886,-896.0,0.00027401,7]
[380744810,1755855051895,-176.96186266,0.00027415,2]
[380744811,1755855051992,-8588.6256679,0.00027415,2]
[380744812,1755855052002,-151.0,0.00027435,2]
[380744813,1755855052011,-151.01534636,0.00027435,2]
[380744814,1755855052021,-293.83601117,0.00027435,2]
[380744815,1755855052030,-151.0,0.00027435,2]
[380744816,1755855052040,-151.00052317,0.00027435,2]
[380744817,1755855052049,-270.49883543,0.00027435,2]
[380744818,1755855052059,-500.0,0.00027435,2]
[380744819,1755855052069,-151.0,0.00027435,2]
[380744820,1755855052079,-151.0,0.00027435,2]
[380744821,1755855052089,-151.0,0.00027435,2]
[380744822,1755855052100,-826.0,0.00027435,2]
[380744823,1755855052110,-152.21211499,0.00027435,2]
[380744824,1755855052119,-151.0,0.00027435,2]
[380744825,1755855052129,-151.0,0.00027466,2]
[380744826,1755855052138,-160.0,0.00027489,5]
[380744827,1755855052151,-153.401174,0.00027499,7]
[380744828,1755855052160,-274.808735,0.00027499,7]
[380744829,1755855052169,-151.0,0.00027499,7]
[380744830,1755855052180,-151.0,0.000275,7]
[380744831,1755855052190,-151.96031,0.000275,7]
[380744832,1755855052200,-160.0,0.00027514,10]
[380744833,1755855052209,-151.0,0.00027515,7]
[380744834,1755855052218,-624698.76135065,0.00027515,20]
[380744838,1755855158689,336.33989217,0.000199,2]
[380744839,1755855158713,500.38483438,0.000199,2]
[380744840,1755855159656,836.72472644,0.0002101,2]
[380744842,1755855323940,1209.97475455,0.0002101,2]
[380744843,1755855324061,1209.9747547,0.000199,2]
[380744845,1755855490281,681.9,0.000211,2]
[380744846,1755855493609,1129.30977101,0.000199,2]
[380744847,1755855494243,1129.30977091,0.0002101,2]
[380744848,1755855664051,1053.87323077,0.000199,2]
[380744849,1755855664431,1053.87323049,0.0002101,2]
[380744853,1755855830589,998.38802778,0.000199,2]
[380744854,1755855831095,998.38802777,0.0002101,2]
[380744879,1755856000852,931.65692693,0.000199,2]
[380744880,1755856001568,931.65692683,0.0002101,2]
[380744882,1755856168218,886.56447473,0.000199,2]
[380744883,1755856168420,886.56447447,0.0002101,2]
[380744885,1755856232263,-300.0,0.00022018,2]
[380744886,1755856232273,-212.0940816,0.00022019,2]
[380744887,1755856232316,-9447.38718762,0.00022019,2]
[380744888,1755856232326,-150.81901718,0.00022119,2]
[380744889,1755856232335,-886.56447447,0.0002212,2]
[380744890,1755856232345,-546.55347465,0.00022524,2]
[380745099,1755856238296,-2662.26954193,0.00022524,2]
[380745101,1755856238308,-6450.65825264,0.00022524,2]
[380745104,1755856238318,-8096.43820248,0.00023029,2]
[380745111,1755856238351,-1563.04306674,0.00023029,2]
[380745113,1755856238360,-886.56447447,0.00023229,2]
[380745115,1755856238369,-420.0,0.00023926,2]
[380745117,1755856238379,-886.56447447,0.00024339,2]
[380745118,1755856238388,-1200.0,0.00024656,2]
[380745121,1755856238398,-363.91907875,0.00024657,10]
[380745123,1755856238407,-486.02968623,0.00024657,10]
[380745124,1755856238416,-295.12593839,0.00024657,10]
[380745126,1755856238426,-497.10432431,0.00024657,10]
[380745128,1755856238435,-6.76420465,0.00024657,10]
[380745131,1755856238451,-474.37614179,0.00024657,10]
[380745133,1755856238461,-485.27173694,0.00024657,10]
[380745135,1755856238471,-480.0,0.00024657,10]
[380745137,1755856238480,-480.0,0.00024657,10]
[380745139,1755856238490,-480.0,0.00024657,10]
[380745141,1755856238499,-480.0,0.00024657,10]
[380745143,1755856238508,-480.0,0.00024657,10]
[380745145,1755856238517,-496.50401874,0.00024657,10]
[380745147,1755856238527,-480.0,0.00024657,10]
[380745149,1755856238536,-480.0,0.00024657,10]
[380745151,1755856238546,-480.0,0.00024657,10]
[380745153,1755856238555,-617.32,0.00024657,10]
[380745155,1755856238568,-503.11,0.00024657,10]
[380745157,1755856238578,-480.0,0.00024657,10]
[380745159,1755856238587,-682.57,0.00024657,10]
[380745161,1755856238598,-480.0,0.00024657,10]
[380745163,1755856238608,-480.0,0.00024657,3]
[380745165,1755856238618,-480.0,0.00024657,10]
[380745167,1755856238628,-480.0,0.00024657,10]
[380745169,1755856238637,-480.0,0.00024657,10]
[380745171,1755856238647,-770.73,0.00024657,10]
[380745173,1755856238657,-160.0,0.00024657,10]
[380745175,1755856238667,-480.0,0.00024657,10]
[380745177,1755856238676,-480.0,0.00024657,10]
[380745178,1755856238685,-480.0,0.00024657,10]
[380745180,1755856238695,-417.15472785,0.00024657,10]
[380745182,1755856238704,-480.0,0.00024657,10]
[380745184,1755856238713,-480.0,0.00024657,10]
[380745186,1755856238722,-1167.48,0.00024657,10]
[380745188,1755856238731,-480.0,0.00024657,10]
[380745190,1755856238740,-480.0,0.00024657,10]
[380745192,1755856238749,-528.9579881,0.00024657,10]
[380745194,1755856238758,-480.0,0.00024657,10]
[380745196,1755856238767,-480.0,0.00024657,10]
[380745198,1755856238776,-480.0,0.00024657,10]
[380745200,1755856238787,-500.0,0.00024836,2]
[380745202,1755856238796,-2802.24686058,0.00024873,7]
[380745204,1755856238807,-2060.35663519,0.00024873,7]
[380745320,1755856240202,-1032.33266177,0.00024873,7]
[380745322,1755856240212,-480.0,0.00024931,10]
[380745324,1755856240221,-480.0,0.00024931,10]
[380745326,1755856240231,-480.0,0.00024931,10]
[380745328,1755856240240,-682.57,0.00024931,10]
[380745330,1755856240249,-226.96,0.00024931,10]
[380745332,1755856240259,-203.34,0.00024931,10]
[380745334,1755856240268,-770.73,0.00024931,10]
[380745336,1755856240277,-480.0,0.00024931,10]
[380745338,1755856240287,-480.0,0.00024931,10]
[380745340,1755856240296,-1167.48,0.00024931,10]
[380745342,1755856240305,-480.0,0.00024931,10]
[380745344,1755856240315,-415.44249796,0.00024931,10]
[380745665,1755856243417,-311.75388055,0.00024657,10]
[380745913,1755856246254,-168.24611945,0.00024657,10]
[380745915,1755856246264,-64.55750204,0.00024931,10]
[380745917,1755856246274,-480.0,0.00024931,10]
[380745919,1755856246284,-633.57,0.00025204,10]
[380745921,1755856246293,-480.0,0.00025204,10]
[380745923,1755856246303,-480.0,0.00025204,10]
[380745925,1755856246312,-480.0,0.00025204,10]
[380745927,1755856246321,-602.67982483,0.00025205,10]
[380745929,1755856246330,-480.0,0.00025205,10]
[380745931,1755856246339,-682.57,0.00025205,10]
[380745933,1755856246348,-770.73,0.00025205,10]
[380745935,1755856246358,-480.0,0.00025205,10]
[380745937,1755856246367,-480.0,0.00025205,10]
[380745938,1755856246377,-1167.48,0.00025205,10]
[380745940,1755856246386,-480.0,0.00025205,10]
[380745942,1755856246403,-480.0,0.00025205,10]
[380745944,1755856246419,-509.96383387,0.00025284,2]
[380745946,1755856246429,-886.56447447,0.00025449,3]
[380745948,1755856246438,-633.57,0.00025478,10]
[380745950,1755856246448,-480.0,0.00025478,10]
[380745952,1755856246457,-160.0,0.00025478,2]
[380745954,1755856246467,-480.0,0.00025478,10]
[380745955,1755856246476,-682.57,0.00025479,10]
[380745956,1755856246484,-770.73,0.00025479,10]
[380745957,1755856246494,-280.11702472,0.00025479,10]
[380745958,1755856246504,-480.0,0.00025479,10]
[380745959,1755856246513,-1167.48,0.00025479,10]
[380745960,1755856246522,-480.0,0.00025479,10]
[380745961,1755856246531,-480.0,0.00025479,10]
[380745962,1755856246541,-633.57,0.00025752,10]
[380745963,1755856246551,-462.6581162,0.00025752,10]
[380745964,1755856246565,-682.57,0.00025753,10]
[380745965,1755856246575,-770.73,0.00025753,10]
[380745966,1755856246584,-480.0,0.00025753,10]
[380745968,1755856246594,-1167.48,0.00025753,10]
[380745970,1755856246604,-480.0,0.00025753,10]
[380745972,1755856246613,-480.0,0.00025753,10]
[380745974,1755856246622,-186.0,0.0002588,2]
[380745976,1755856246633,-183.0,0.0002594,7]
[380745978,1755856246643,-587.0,0.00025999,2]
[380745980,1755856246652,-1736.49,0.00026,7]
[380745982,1755856246662,-183.0,0.00026005,2]
[380745984,1755856246671,-633.57,0.00026026,10]
[380745986,1755856246680,-260.0,0.00026026,2]
[380745988,1755856246689,-682.57,0.00026027,10]
[380745990,1755856246700,-770.73,0.00026027,10]
[380745992,1755856246709,-480.0,0.00026027,10]
[380745994,1755856246719,-1167.48,0.00026027,10]
[380745996,1755856246729,-480.0,0.00026027,10]
[380745998,1755856246738,-480.0,0.00026027,10]
[380746000,1755856246747,-151.0,0.00026097,2]
[380746002,1755856246756,-183.0,0.00026124,2]